fUSD/lending_fUSD_20250226
["ID","MTS","AMOUNT","RATE_DAILY","PERIOD"]
[354571541,1740579040048,-978.91,0.00038627,14]
[354571542,1740579040060,-500.0,0.00038627,14]
[354571543,1740579040071,-500.0,0.00038627,14]
[354571544,1740579040081,-503.98032584,0.00038627,14]
[354571545,1740579040091,-500.0,0.00038627,14]
[354571546,1740579040100,-500.0,0.00038627,14]
[354571547,1740579040110,-500.0,0.00038627,14]
[354571548,1740579040121,-825.29,0.00038627,14]
[354571549,1740579040130,-500.0,0.00038627,14]
[354571550,1740579040141,-520.28569782,0.00038627,14]
[354571551,1740579040151,-583.74,0.00038627,14]
[354571552,1740579040164,-500.0,0.00038627,14]
[354571553,1740579040173,-500.0,0.00038627,14]
[354571554,1740579040182,-612.46,0.00038627,14]
[354571556,1740579040192,-503.63180215,0.00038627,14]
[354571557,1740579040202,-572.91,0.00038627,14]
[354571558,1740579040212,-500.0,0.00038627,14]
[354571559,1740579040222,-755.97,0.00038627,14]
[354571560,1740579040232,-500.0,0.00038627,14]
[354571561,1740579040242,-500.0,0.00038627,14]
[354571562,1740579040255,-538.04,0.00038627,14]
[354571563,1740579040264,-500.0,0.00038627,14]
[354571564,1740579040274,-753.71,0.00038627,14]
[354571565,1740579040284,-651.66,0.00038627,14]
[354571566,1740579040294,-1026.57,0.00038627,14]
[354571567,1740579040307,-1020.87,0.00038627,14]
[354571568,1740579040317,-500.0,0.00038627,14]
[354571569,1740579040329,-500.0,0.00038627,14]
[354571570,1740579040340,-1007.43,0.00038627,14]
[354571571,1740579040349,-500.0,0.00038627,14]
[354571572,1740579040360,-1095.01,0.00038627,14]
[354571573,1740579040372,-910.66,0.00038627,14]
[354571574,1740579040382,-500.0,0.00038627,14]
[354571575,1740579040391,-500.0,0.00038627,14]
[354571576,1740579040400,-564.6,0.00038627,14]
[354571577,1740579040409,-768.03,0.00038627,14]
[354571578,1740579040419,-500.0,0.00038627,14]
[354571579,1740579040429,-992.83,0.00038627,14]
[354571580,1740579040439,-500.0,0.00038627,14]
[354571581,1740579040448,-993.3,0.00038627,14]
[354571582,1740579040458,-500.0,0.00038627,14]
[354571583,1740579040467,-500.0,0.00038627,14]
[354571584,1740579040478,-499.39519986,0.00038627,14]
[354571585,1740579040488,-690.81,0.00038627,14]
[354571586,1740579040498,-500.0,0.00038627,14]
[354571587,1740579040508,-794.98,0.00038627,14]
[354571588,1740579040518,-222.73457994,0.00038627,14]
[354571589,1740579040527,-625.49,0.00038627,14]
[354571590,1740579040537,-500.0,0.00038627,14]
[354571591,1740579040546,-500.89,0.00038627,14]
[354571592,1740579040558,-500.0,0.00038627,14]
[354571593,1740579040568,-500.0,0.00038627,14]
[354571594,1740579040577,-591.01,0.00038627,14]
[354571595,1740579040587,-1648.44,0.00038627,14]
[354571596,1740579040596,-500.0,0.00038627,14]
[354571597,1740579040606,-500.0,0.00038627,14]
[354571598,1740579040615,-1674.03,0.00038627,14]
[354571599,1740579040624,-500.0,0.00038627,14]
[354571600,1740579040634,-500.0,0.00038627,14]
[354571601,1740579040643,-712.51,0.00038627,14]
[354571602,1740579040653,-500.0,0.00038627,14]
[354571603,1740579040663,-990.23,0.00038627,14]
[354571604,1740579040672,-1962.02,0.00038627,14]
[354571605,1740579040681,-500.0,0.00038627,14]
[354571606,1740579040691,-500.0,0.00038627,14]
[354571607,1740579040700,-500.0,0.00038627,14]
[354571608,1740579040709,-628.58,0.00038627,14]
[354571609,1740579040718,-693.39,0.00038627,14]
[354571610,1740579040727,-807.24,0.00038627,14]
[354571611,1740579040737,-500.0,0.00038627,14]
[354571612,1740579040746,-500.0,0.00038627,14]
[354571613,1740579040756,-500.0,0.00038627,14]
[354571614,1740579040766,-500.0,0.00038627,14]
[354571615,1740579040775,-500.0,0.00038627,14]
[354571616,1740579040784,-500.0,0.00038627,14]
[354571617,1740579040794,-766.03,0.00038627,14]
[354571618,1740579040805,-500.0,0.00038627,14]
[354571619,1740579040814,-500.0,0.00038627,14]
[354571620,1740579040824,-500.0,0.00038627,14]
[354571621,1740579040833,-500.0,0.00038627,14]
[354571622,1740579040843,-2132.27,0.00038627,14]
[354571623,1740579040852,-500.0,0.00038627,14]
[354571624,1740579040862,-569.13,0.00038627,14]
[354571625,1740579040871,-765.88,0.00038627,14]
[354571626,1740579040882,-500.0,0.00038627,14]
[354571627,1740579040892,-309.081453,0.00038627,14]
[354571628,1740579040901,-500.0,0.00038627,14]
[354571629,1740579040911,-642.3,0.00038627,14]
[354571630,1740579040920,-803.74,0.00038627,14]
[354571631,1740579040930,-923.56,0.00038627,14]
[354571632,1740579040939,-1195.67,0.00038627,14]
[354571633,1740579040948,-500.0,0.00038627,14]
[354571634,1740579040958,-959.11,0.00038627,14]
[354571635,1740579040967,-500.0,0.00038627,14]
[354571636,1740579040977,-1531.18,0.00038627,14]
[354571637,1740579040986,-971.94,0.00038627,14]
[354571638,1740579040996,-1072.53,0.00038627,14]
[354571639,1740579041005,-2069.97,0.00038627,14]
[354571640,1740579041015,-500.0,0.00038627,14]
[354571641,1740579041024,-516.84,0.00038627,14]
[354571642,1740579041034,-661.53,0.00038627,14]
[354571643,1740579041043,-1839.88,0.00038627,14]
[354571644,1740579041057,-1359.96,0.00038627,14]
[354571645,1740579041066,-500.0,0.00038627,14]
[354571646,1740579041075,-1985.62,0.00038627,14]
[354571647,1740579041086,-649.95,0.00038627,14]
[354571648,1740579041096,-1364.43,0.00038627,14]
[354571649,1740579041106,-1535.28,0.00038627,14]
[354571650,1740579041115,-1331.69,0.00038627,14]
[354571651,1740579041125,-818.39159893,0.00038627,2]
[354571652,1740579041135,-938.39,0.00038627,14]
[354571653,1740579041151,-559.38,0.00038627,14]
[354571654,1740579041160,-500.0,0.00038627,14]
[354571655,1740579041170,-500.0,0.00038627,14]
[354571656,1740579041181,-1624.0,0.00038627,14]
[354571657,1740579041190,-1284.75,0.00038627,14]
[354571658,1740579041199,-1147.1,0.00038627,14]
[354571659,1740579041210,-500.0,0.00038627,14]
[354571660,1740579041220,-500.0,0.00038627,14]
[354571661,1740579041230,-500.0,0.00038627,14]
[354571662,1740579041241,-3448.1,0.00038627,14]
[354571663,1740579041250,-1343.45,0.00038627,14]
[354571664,1740579041260,-995.8,0.00038627,14]
[354571665,1740579041270,-1489.87,0.00038627,14]
[354571666,1740579041279,-500.0,0.00038627,14]
[354571667,1740579041289,-932.67,0.00038627,14]
[354571668,1740579041300,-500.0,0.00038627,14]
[354571669,1740579041314,-729.49,0.00038627,14]
[354571670,1740579041324,-1092.54,0.00038627,14]
[354571671,1740579041334,-1327.39,0.00038627,14]
[354571672,1740579041343,-1101.87,0.00038627,14]
[354571673,1740579041354,-500.0,0.00038627,14]
[354571674,1740579041363,-699.61,0.00038627,14]
[354571675,1740579041373,-1570.33,0.00038627,14]
[354571676,1740579041383,-969.11,0.00038627,14]
[354571677,1740579041393,-500.0,0.00038627,14]
[354571678,1740579041403,-843.19,0.00038627,14]
[354571679,1740579041412,-500.0,0.00038627,14]
[354571680,1740579041422,-1269.57,0.00038627,14]
[354571681,1740579041431,-500.0,0.00038627,14]
[354571682,1740579041441,-445.94925669,0.00038627,14]
[354571683,1740579041450,-500.0,0.00038627,14]
[354571684,1740579041460,-500.0,0.00038627,14]
[354571685,1740579041469,-500.0,0.00038627,14]
[354571686,1740579041479,-988.96,0.00038627,14]
[354571687,1740579041488,-1044.75,0.00038627,14]
[354571688,1740579041498,-518.04,0.00038627,14]
[354571689,1740579041507,-583.83,0.00038627,14]
[354571690,1740579041517,-500.0,0.00038627,14]
[354571691,1740579041526,-963.56,0.00038627,14]
[354571692,1740579041536,-300.0,0.00038627,14]
[354571693,1740579041545,-1823.45,0.00038627,14]
[354571694,1740579041560,-985.02,0.00038627,14]
[354571695,1740579041570,-1313.1,0.00038627,14]
[354571696,1740579041579,-1094.31,0.00038627,14]
[354571697,1740579041588,-500.0,0.00038627,14]
[354571698,1740579041597,-987.41,0.00038627,14]
[354571699,1740579041607,-1261.86,0.00038627,14]
[354571700,1740579041617,-500.0,0.00038627,14]
[354571701,1740579041627,-2623.37,0.00038627,14]
[354571702,1740579041636,-500.0,0.00038627,14]
[354571703,1740579041646,-631.48,0.00038627,14]
[354571704,1740579041655,-500.0,0.00038627,14]
[354571705,1740579041664,-500.0,0.00038627,14]
[354571706,1740579041674,-500.0,0.00038627,14]
[354571707,1740579041685,-1194.79,0.00038627,14]
[354571708,1740579041696,-500.0,0.00038627,14]
[354571709,1740579041706,-1009.46,0.00038627,14]
[354571710,1740579041716,-681.97,0.00038627,14]
[354571711,1740579041726,-500.0,0.00038627,14]
[354571712,1740579041736,-1820.9,0.00038627,14]
[354571713,1740579041746,-1826.89,0.00038627,14]
[354571714,1740579041756,-630.45,0.00038627,14]
[354571715,1740579041765,-500.0,0.00038627,14]
[354571716,1740579041775,-500.0,0.00038627,14]
[354571717,1740579041785,-695.83,0.00038627,14]
[354571718,1740579041795,-883.53,0.00038627,14]
[354571719,1740579041808,-510.79,0.00038627,14]
[354571720,1740579041817,-500.0,0.00038627,14]
[354571721,1740579041829,-780.6,0.00038627,14]
[354571722,1740579041839,-1217.03,0.00038627,14]
[354571723,1740579041848,-500.0,0.00038627,14]
[354571724,1740579041858,-500.0,0.00038627,14]
[354571725,1740579041868,-1540.48,0.00038627,14]
[354571726,1740579041877,-500.0,0.00038627,14]
[354571727,1740579041886,-500.0,0.00038627,14]
[354571728,1740579041896,-1394.53,0.00038627,14]
[354571729,1740579041906,-500.0,0.00038627,14]
[354571730,1740579041916,-1632.46,0.00038627,14]
[354571731,1740579041926,-734.41,0.00038627,14]
[354571732,1740579041936,-500.0,0.00038627,14]
[354571733,1740579041945,-500.0,0.00038627,14]
[354571734,1740579041955,-629.86,0.00038627,14]
[354571735,1740579041964,-500.0,0.00038627,14]
[354571736,1740579041974,-611.23,0.00038627,14]
[354571737,1740579041984,-657.24,0.00038627,14]
[354571738,1740579041994,-967.67,0.00038627,14]
[354571739,1740579042003,-1297.29,0.00038627,14]
[354571740,1740579042012,-2160.04,0.00038627,14]
[354571741,1740579042022,-687.1,0.00038627,14]
[354571742,1740579042032,-1405.07,0.00038627,14]
[354571743,1740579042041,-500.0,0.00038627,14]
[354571744,1740579042053,-1312.8,0.00038627,14]
[354571745,1740579042062,-574.68,0.00038627,14]
[354571746,1740579042071,-1566.69,0.00038627,14]
[354571747,1740579042081,-1850.36,0.00038627,14]
[354571748,1740579042090,-2688.95,0.00038627,14]
[354571749,1740579042099,-425.04007111,0.00038627,14]
[354571750,1740579042109,-500.0,0.00038627,14]
[354571751,1740579042119,-634.52,0.00038627,14]
[354571752,1740579042128,-500.0,0.00038627,14]
[354571753,1740579042138,-2639.65,0.00038627,14]
[354571754,1740579042148,-1346.1,0.00038627,14]
[354571755,1740579042159,-597.82,0.00038627,14]
[354571756,1740579042170,-500.0,0.00038627,14]
[354571757,1740579042179,-783.94,0.00038627,14]
[354571758,1740579042189,-1875.46,0.00038627,14]
[354571759,1740579042199,-500.0,0.00038627,14]
[354571760,1740579042212,-500.0,0.00038627,14]
[354571761,1740579042222,-3302.05,0.00038627,14]
[354571762,1740579042232,-500.0,0.00038627,14]
[354571763,1740579042241,-1299.24,0.00038627,14]
[354571764,1740579042252,-10982.95,0.00038627,14]
[354571765,1740579042262,-500.0,0.00038627,14]
[354571767,1740579042271,-1002.34,0.00038627,14]
[354571769,1740579042281,-992.48,0.00038627,14]
[354571771,1740579042291,-500.0,0.00038627,14]
[354571772,1740579042301,-500.0,0.00038627,14]
[354571773,1740579042311,-2956.75,0.00038627,14]
[354571774,1740579042321,-1260.8,0.00038627,14]
[354571775,1740579042331,-867.41,0.00038627,14]
[354571776,1740579042340,-947.35,0.00038627,14]
[354571777,1740579042350,-770.05,0.00038627,14]
[354571778,1740579042359,-1081.94,0.00038627,14]
[354571779,1740579042369,-1321.65,0.00038627,14]
[354571780,1740579042378,-2800.68,0.00038627,14]
[354571781,1740579042388,-500.0,0.00038627,14]
[354571782,1740579042398,-546.52,0.00038627,14]
[354571783,1740579042408,-534.66,0.00038627,14]
[354571784,1740579042417,-500.0,0.00038627,14]
[354571785,1740579042427,-736.78,0.00038627,14]
[354571786,1740579042436,-500.0,0.00038627,14]
[354571787,1740579042446,-504.24,0.00038627,14]
[354571788,1740579042456,-500.0,0.00038627,14]
[354571789,1740579042468,-9015.06,0.00038627,14]
[354571790,1740579042479,-836.99,0.00038627,14]
[354571792,1740579042490,-723.81,0.00038627,14]
[354571793,1740579042501,-500.0,0.00038627,14]
[354571795,1740579042512,-500.0,0.00038628,14]
[354571797,1740579042523,-515.9,0.00038628,14]
[354571799,1740579042535,-500.0,0.00038628,14]
[354571800,1740579042546,-1834.5,0.00038628,14]
[354571801,1740579042564,-500.0,0.00038628,14]
[354571802,1740579042574,-944.67,0.00038628,14]
[354571803,1740579042585,-500.0,0.00038628,14]
[354571804,1740579042596,-791.73,0.00038628,14]
[354571805,1740579042606,-820.02,0.00038628,14]
[354571806,1740579042617,-500.0,0.00038628,14]
[354571808,1740579042628,-1056.64,0.00038628,14]
[354571810,1740579042639,-1537.93,0.00038628,14]
[354571811,1740579042651,-1621.59,0.00038628,14]
[354571812,1740579042661,-500.0,0.00038628,14]
[354571813,1740579042672,-1394.71,0.00038628,14]
[354571814,1740579042682,-2100.0,0.00038628,14]
[354571815,1740579042692,-500.0,0.00038628,14]
[354571816,1740579042702,-500.0,0.00038628,14]
[354571817,1740579042713,-500.0,0.00038628,14]
[354571818,1740579042724,-500.0,0.00038628,14]
[354571819,1740579042734,-381.35395901,0.00038628,14]
[354571838,1740579043182,-447.38604099,0.00038628,14]
[354571839,1740579043193,-500.0,0.00038628,14]
[354571840,1740579043203,-500.0,0.00038628,14]
[354571841,1740579043214,-500.0,0.00038628,14]
[354571842,1740579043223,-955.28,0.00038628,14]
[354571843,1740579043239,-500.0,0.00038628,14]
[354571844,1740579043249,-835.57,0.00038628,14]
[354571845,1740579043259,-855.53,0.00038628,14]
[354571846,1740579043269,-1301.61,0.00038628,14]
[354571848,1740579043279,-989.03,0.00038628,14]
[354571849,1740579043289,-1283.55,0.00038628,14]
[354571850,1740579043305,-2008.44,0.00038628,14]
[354571851,1740579043316,-1982.32,0.00038628,14]
[354571852,1740579043328,-1390.29,0.00038628,14]
[354571853,1740579043339,-1560.11,0.00038628,14]
[354571854,1740579043349,-500.0,0.00038628,14]
[354571855,1740579043360,-2225.85,0.00038628,14]
[354571856,1740579043371,-1144.79,0.00038628,14]
[354571857,1740579043382,-3889.48,0.00038628,14]
[354571858,1740579043393,-1958.29,0.00038628,14]
[354571859,1740579043404,-2543.92,0.00038628,14]
[354571860,1740579043414,-1610.63,0.00038628,14]
[354571861,1740579043425,-1123.89,0.00038628,14]
[354571862,1740579043436,-1055.64,0.00038628,14]
[354571863,1740579043446,-1811.37,0.00038628,14]
[354571864,1740579043457,-525.88,0.00038628,14]
[354571865,1740579043468,-1185.45,0.00038628,14]
[354571866,1740579043478,-500.0,0.00038628,14]
[354571867,1740579043488,-3527.89,0.00038628,14]
[354571868,1740579043499,-1586.84,0.00038628,14]
[354571869,1740579043509,-1273.45,0.00038628,14]
[354571870,1740579043519,-667.39,0.00038628,14]
[354571871,1740579043530,-1601.72,0.00038628,14]
[354571873,1740579043540,-632.18,0.00038628,14]
[354571874,1740579043550,-500.0,0.00038628,14]
[354571875,1740579043563,-633.32,0.00038628,14]
[354571876,1740579043574,-500.0,0.00038628,14]
[354571877,1740579043585,-1548.06,0.00038628,14]
[354571878,1740579043595,-1351.63,0.00038628,14]
[354571879,1740579043607,-1613.65,0.00038628,14]
[354571880,1740579043617,-500.0,0.00038628,14]
[354571881,1740579043627,-500.0,0.00038629,14]
[354571882,1740579043638,-500.0,0.00038629,14]
[354571883,1740579043648,-574.03,0.00038629,14]
[354571884,1740579043660,-583.56,0.00038629,14]
[354571885,1740579043671,-919.11,0.00038629,14]
[354571886,1740579043683,-500.0,0.00038629,14]
[354571887,1740579043693,-500.0,0.00038629,14]
[354571888,1740579043704,-500.0,0.00038629,14]
[354571889,1740579043715,-500.0,0.00038629,14]
[354571890,1740579043725,-500.0,0.00038629,14]
[354571891,1740579043735,-500.0,0.00038629,14]
[354571892,1740579043745,-856.74,0.00038629,14]
[354571893,1740579043755,-708.53,0.00038629,14]
[354571894,1740579043766,-687.98,0.00038629,14]
[354571895,1740579043777,-500.0,0.00038629,14]
[354571896,1740579043788,-500.0,0.00038629,14]
[354571897,1740579043800,-1224.09,0.00038629,14]
[354571898,1740579043812,-500.0,0.00038629,14]
[354571899,1740579043823,-642.92,0.00038629,14]
[354571900,1740579043833,-500.0,0.00038629,14]
[354571901,1740579043843,-500.0,0.00038629,14]
[354571902,1740579043853,-500.0,0.00038629,14]
[354571903,1740579043864,-500.0,0.00038629,14]
[354571904,1740579043874,-500.0,0.00038629,14]
[354571905,1740579043885,-1378.47,0.00038629,14]
[354571906,1740579043895,-525.37,0.00038629,14]
[354571907,1740579043905,-667.25,0.00038629,14]
[354571908,1740579043915,-1101.68,0.00038629,14]
[354571909,1740579043925,-1827.21,0.00038629,14]
[354571910,1740579043935,-500.0,0.00038629,14]
[354571911,1740579043946,-500.0,0.00038629,14]
[354571912,1740579043956,-500.0,0.00038629,14]
[354571913,1740579043967,-500.0,0.00038629,14]
[354571914,1740579043978,-500.0,0.00038629,14]
[354571915,1740579043988,-1293.28,0.00038629,14]
[354571916,1740579043998,-501.66,0.00038629,14]
[354571917,1740579044008,-595.35,0.00038629,14]
[354571918,1740579044019,-1402.84,0.00038629,14]
[354571919,1740579044029,-500.0,0.00038629,14]
[354571920,1740579044039,-1106.24,0.00038629,14]
[354571921,1740579044049,-735.16,0.00038629,14]
[354571922,1740579044063,-500.0,0.00038629,14]
[354571923,1740579044073,-1672.09,0.00038629,14]
[354571924,1740579044083,-500.0,0.00038629,14]
[354571925,1740579044094,-533.87515314,0.00038629,14]
[354571926,1740579044105,-500.0,0.00038629,14]
[354571927,1740579044115,-260.32110794,0.00038629,14]
[354571928,1740579044125,-858.59,0.00038629,14]
[354571929,1740579044136,-1014.94,0.00038629,14]
[354571930,1740579044152,-509.11,0.00038629,14]
[354571931,1740579044162,-217.0,0.0003863,14]
[354571932,1740579044172,-501.38681508,0.00038673,5]
[354571933,1740579044183,-7815.73312792,0.000387,30]
[354571934,1740579044194,-697.39264935,0.00038702,2]
[354571935,1740579044205,-1882.24153512,0.00038746,2]
[354571936,1740579044216,-1741.9,0.00038773,14]
[354571937,1740579044226,-2546.12,0.00038773,14]
[354571938,1740579044237,-937.0,0.00038773,7]
[354571939,1740579044249,-921.16,0.00038773,14]
[354571940,1740579044259,-1665.48,0.00038773,14]
[354571941,1740579044270,-1924.26,0.00038773,14]
[354571942,1740579044280,-1706.48,0.00038773,14]
[354571943,1740579044291,-1367.39,0.00038773,14]
[354571944,1740579044301,-1305.398709,0.00038773,14]
[354571945,1740579044316,-2092.61,0.00038773,2]
[354571946,1740579044327,-1628.36,0.00038773,14]
[354571947,1740579044338,-1427.72,0.00038773,14]
[354571948,1740579044348,-2164.35,0.00038773,14]
[354571949,1740579044359,-1702.04,0.00038773,14]
[354571950,1740579044369,-2419.07,0.00038773,14]
[354571951,1740579044380,-1249.89,0.00038773,14]
[354571952,1740579044390,-2364.22,0.00038773,14]
[354571953,1740579044400,-1644.73,0.00038773,14]
[354571954,1740579044410,-2453.57,0.00038773,14]
[354571955,1740579044420,-2845.99,0.00038773,14]
[354571956,1740579044430,-500.0,0.00038773,14]
[354571957,1740579044440,-10194.41,0.00038773,14]
[354571958,1740579044450,-5669.11,0.00038773,14]
[354571959,1740579044460,-2373.2,0.00038773,14]
[354571960,1740579044471,-2458.21,0.00038773,14]
[354571961,1740579044481,-1214.82,0.00038773,14]
[354571962,1740579044492,-2584.33,0.00038773,14]
[354571963,1740579044502,-2136.62,0.00038773,14]
[354571964,1740579044512,-2800.15,0.00038773,14]
[354571965,1740579044522,-1891.52,0.00038773,14]
[354571966,1740579044532,-1319.55,0.00038773,14]
[354571967,1740579044543,-500.0,0.00038773,14]
[354571968,1740579044553,-4907.13,0.00038773,14]
[354571969,1740579044567,-1669.57,0.00038773,14]
[354571970,1740579044577,-1022.16,0.00038773,14]
[354571971,1740579044587,-1461.24,0.00038773,14]
[354571972,1740579044598,-2876.07,0.00038773,14]
[354571973,1740579044608,-500.0,0.00038773,14]
[354571974,1740579044618,-4053.62,0.00038773,14]
[354571975,1740579044628,-500.0,0.00038773,14]
[354571976,1740579044639,-2756.34,0.00038773,14]
[354571977,1740579044649,-8461.68,0.00038773,14]
[354571978,1740579044659,-1513.27,0.00038773,14]
[354571979,1740579044669,-3747.11,0.00038773,14]
[354571980,1740579044680,-546.54,0.00038773,14]
[354571981,1740579044690,-500.0,0.00038773,14]
[354571982,1740579044700,-1953.59,0.00038773,14]
[354571983,1740579044711,-1081.18,0.00038773,14]
[354571984,1740579044721,-610.31,0.00038773,14]
[354571985,1740579044731,-3730.81,0.00038773,14]
[354571986,1740579044742,-1118.72,0.00038773,14]
[354571987,1740579044753,-1078.68,0.00038773,14]
[354571988,1740579045038,-1235.06,0.00038773,14]
[354571989,1740579045100,-1173.72,0.00038773,14]
[354571990,1740579045111,-3356.85,0.00038773,14]
[354571991,1740579045121,-3909.95,0.00038773,14]
[354571992,1740579045131,-2504.14,0.00038773,14]
[354571993,1740579045141,-1471.03,0.00038773,14]
[354571994,1740579045152,-3435.84,0.00038773,14]
[354571995,1740579045162,-878.01,0.00038773,14]
[354571996,1740579045175,-214.35236334,0.0003879,12]
[354571997,1740579045185,-174.36026702,0.00038801,2]
[354571998,1740579045194,-697.39264935,0.00038885,2]
[354571999,1740579045207,-632.18,0.0003889,14]
[354572000,1740579045217,-500.0,0.00038899,14]
[354572001,1740579045228,-500.0,0.00038899,14]
[354572002,1740579045238,-608.73,0.00038899,14]
[354572003,1740579045248,-500.0,0.00038899,14]
[354572004,1740579045258,-500.0,0.00038899,14]
[354572005,1740579045268,-500.0,0.00038899,14]
[354572006,1740579045278,-500.0,0.00038899,14]
[354572007,1740579045288,-500.0,0.00038899,14]
[354572008,1740579045298,-500.0,0.00038899,14]
[354572009,1740579045310,-920.77,0.00038899,14]
[354572011,1740579045320,-1222.03,0.00038899,14]
[354572012,1740579045330,-500.0,0.00038899,14]
[354572013,1740579045340,-765.25,0.00038899,14]
[354572014,1740579045350,-500.0,0.00038899,14]
[354572015,1740579045360,-500.0,0.00038899,14]
[354572016,1740579045371,-500.0,0.00038899,14]
[354572017,1740579045381,-527.94,0.00038899,14]
[354572018,1740579045392,-500.0,0.00038899,14]
[354572019,1740579045403,-796.19,0.00038899,14]
[354572020,1740579045414,-528.52,0.00038899,14]
[354572021,1740579045424,-641.57,0.00038899,14]
[354572022,1740579045434,-830.07,0.00038899,14]
[354572023,1740579045444,-190.09924014,0.00038899,14]
[354572024,1740579045453,-702.66,0.00038899,14]
[354572025,1740579045463,-513.17,0.00038899,14]
[354572026,1740579045473,-612.24,0.00038899,14]
[354572027,1740579045484,-500.0,0.00038899,14]
[354572028,1740579045493,-500.0,0.00038899,14]
[354572029,1740579045503,-536.81,0.00038899,14]
[354572030,1740579045513,-988.12,0.00038899,14]
[354572031,1740579045523,-500.0,0.00038899,14]
[354572032,1740579045533,-500.0,0.00038899,14]
[354572035,1740579045543,-500.0,0.00038899,14]
[354572037,1740579045553,-500.0,0.00038899,14]
[354572039,1740579045564,-500.0,0.00038899,14]
[354572041,1740579045574,-824.39,0.00038899,14]
[354572043,1740579045584,-598.8,0.00038899,14]
[354572045,1740579045594,-578.13,0.00038899,14]
[354572047,1740579045604,-500.0,0.00038899,14]
[354572049,1740579045614,-500.0,0.00038899,14]
[354572051,1740579045624,-788.51,0.00038899,14]
[354572053,1740579045635,-516.45,0.00038899,14]
[354572055,1740579045644,-500.0,0.00038899,14]
[354572056,1740579045654,-917.08,0.00038899,14]
[354572057,1740579045664,-500.0,0.00038899,14]
[354572058,1740579045673,-500.0,0.00038899,14]
[354572059,1740579045684,-500.0,0.00038899,14]
[354572061,1740579045694,-795.74,0.00038899,14]
[354572062,1740579045704,-500.0,0.00038899,14]
[354572065,1740579045714,-500.0,0.00038899,14]
[354572066,1740579045724,-766.94,0.000389,14]
[354572068,1740579045734,-526.99,0.000389,14]
[354572070,1740579045744,-500.0,0.000389,14]
[354572072,1740579045754,-206.18825891,0.000389,14]
[354572074,1740579045764,-500.0,0.000389,14]
[354572076,1740579045773,-500.0,0.000389,14]
[354572078,1740579045783,-877.52,0.000389,14]
[354572080,1740579045793,-500.0,0.000389,14]
[354572082,1740579045805,-679.36,0.000389,14]
[354572084,1740579045816,-278.15968034,0.000389,14]
[354572087,1740579045832,-397.80031966,0.000389,14]
[354572089,1740579045842,-500.0,0.000389,14]
[354572091,1740579045852,-1354.66,0.000389,14]
[354572093,1740579045863,-500.0,0.000389,14]
[354572095,1740579045873,-500.0,0.000389,14]
[354572096,1740579045882,-800.36,0.000389,14]
[354572098,1740579045892,-500.0,0.000389,14]
[354572099,1740579045902,-541.12,0.000389,14]
[354572101,1740579045913,-1236.59,0.000389,14]
[354572103,1740579045923,-752.34,0.000389,14]
[354572105,1740579045935,-749.56,0.000389,14]